bitfinex-derivatives/quotes_SOLF0:USTF0_20250518
["timestamp","ask_amount","ask_price","bid_price","bid_amount"]
[1747568844759,11.28590407,170.98,170.95,5.8477]
[1747568845557,5.847,170.97,170.94,5.8479]
[1747568846758,5.8468,170.98,170.95,5.8477]
[1747568848860,5.8468,170.98,170.96,5.8473]
[1747568849562,69.34540407,170.99,170.96,5.8473]
[1747568849863,63.49900407,170.99,170.97,5.847]
[1747568850265,69.34540407,170.99,170.97,5.847]
[1747568851966,63.49900407,170.99,170.97,5.847]
[1747568852167,5.43900407,170.99,170.98,5.8467]
[1747568852659,5.43900407,170.99,170.93,3.7762]
[1747568852660,5.43900407,171.0,170.94,58.04]
[1747568854064,5.43900407,171.0,170.98,5.8464]
[1747568854268,5.43900407,171.0,170.94,58.04]
[1747568854667,5.43900407,171.0,170.99,5.8463]
[1747568855968,213.33626943,171.02,171.0,5.8459]
[1747568856567,219.18166943,171.02,170.95,58.04]
[1747568857169,219.18166943,171.02,170.98,5.8464]
[1747568857366,5.8458,171.01,170.98,5.8464]
[1747568858074,219.18166943,171.02,170.99,5.8463]
[1747568858757,219.18166943,171.02,170.98,5.8465]
[1747568859266,219.18166943,171.02,170.99,5.8463]
[1747568859965,5.8454,171.02,170.99,5.8463]
[1747568872481,5.8457,171.01,170.99,5.8463]
[1747568873585,5.8454,171.02,170.99,5.8463]
[1747568876788,5.8457,171.01,170.99,5.8463]
[1747568877190,58.02,171.04,170.95,58.04]
[1747568877390,5.8463,171.0,170.95,58.04]
[1747568877691,5.8463,171.0,170.97,5.8468]
[1747568878391,5.8463,171.0,170.98,5.8467]
[1747568879493,5.8458,171.01,170.98,5.8467]
[1747568880799,5.846,171.0,170.98,5.8467]
[1747568883093,5.846,171.0,170.97,5.8469]
[1747568883794,5.8463,170.99,170.97,5.8469]
[1747568885092,5.8461,171.0,170.97,5.8469]
[1747568885389,63.45900407,171.04,170.97,5.8469]
[1747568885689,5.43900407,171.03,170.97,5.8469]
[1747568886593,5.8463,171.0,170.97,5.8469]
[1747568888195,5.8464,170.99,170.97,5.8469]
[1747568889190,5.8461,171.0,170.97,5.8469]
[1747568891092,5.8461,171.0,170.98,5.8466]
[1747568891298,5.8458,171.01,170.98,5.8466]
[1747568895103,5.8454,171.02,170.99,5.8462]
[1747568896400,11.28440407,171.02,170.99,5.8462]
[1747568896802,5.43900407,171.02,170.99,5.8462]
[1747568897105,5.43900407,171.02,171.0,5.8459]
[1747568897602,5.43900407,171.02,170.95,58.04]
[1747568898300,11.28440407,171.02,170.95,58.04]
[1747568898702,11.28440407,171.02,170.99,5.8461]
[1747568899903,5.43900407,171.01,170.99,5.8461]
[1747568900407,11.28480407,171.01,170.98,5.8466]
[1747568900902,5.43900407,171.01,170.95,58.04]
[1747568901103,5.43900407,171.01,170.98,5.8465]
[1747568903003,5.43900407,171.01,170.99,5.8463]
[1747568908905,11.28480407,171.01,170.98,5.8464]
[1747568911307,11.28480407,171.01,170.99,5.8463]
[1747568912915,5.846,171.0,170.95,58.04]
[1747568913607,5.846,171.0,170.97,5.8468]
[1747568913810,11.28500407,171.0,170.97,5.8468]
[1747568914911,5.8464,170.99,170.96,5.847]
[1747568915610,5.43900407,171.0,170.95,63.8875]
[1747568915905,5.43900407,171.0,170.95,5.8475]
[1747568916599,63.37900407,171.0,170.94,5.848]
[1747568917515,5.43900407,170.97,170.94,5.848]
[1747568918706,5.8474,170.96,170.94,5.848]
[1747568919213,5.848,170.95,170.93,3.7762]
[1747568919817,5.43900407,170.97,170.9,133.95487348]
[1747568920011,63.39900407,170.97,170.9,133.95487348]
[1747568920210,57.94,170.96,170.9,139.80407348]
[1747568920517,5.8491,170.91,170.9,133.95487348]
[1747568921013,5.8491,170.91,170.89,3.7543]
[1747568924021,5.8488,170.92,170.89,9.604]
[1747568924914,5.8483,170.94,170.91,5.849]
[1747568925421,5.8478,170.95,170.91,5.8488]
[1747568925618,5.8478,170.95,170.89,3.7543]
[1747568926920,5.8478,170.95,170.91,5.8488]
[1747568927420,5.8478,170.95,170.79,7.29678236]
[1747568927421,5.86,170.95,170.79,7.29678236]
[1747568927621,63.37900407,170.96,170.79,7.29678236]
[1747568927924,5.8509,170.86,170.8,5.8527]
[1747568928219,121.7309,170.86,170.8,5.8527]
[1747568928418,121.7309,170.86,170.79,13.14988236]
[1747568928723,115.88,170.86,170.79,7.29678236]
[1747568928918,115.88,170.86,170.77,115.88]
[1747568929117,69.22930407,170.88,170.77,115.88]
[1747568929724,5.8507,170.87,170.8,5.8525]
[1747568930124,5.8507,170.87,170.77,115.88]
[1747568930424,5.8507,170.87,170.8,5.8528]
[1747568931826,5.8509,170.86,170.8,5.8528]
[1747568932725,5.8512,170.85,170.8,5.8528]
[1747568933225,57.96,170.85,170.78,5.8444]
[1747568934637,5.8522,170.82,170.78,5.8444]
[1747568935827,57.96,170.85,170.78,5.8444]
[1747568937142,5.8518,170.83,170.78,5.8444]
[1747568937437,5.8518,170.83,170.78,63.8044]
[1747568938537,5.8518,170.83,170.78,69.6578]
[1747568938942,57.94,170.88,170.78,63.8044]
[1747568939137,57.96,170.87,170.78,63.8044]
[1747568939641,115.94,170.9,170.78,63.8044]
[1747568940241,5.8506,170.87,170.81,5.8525]
[1747568940944,5.8506,170.87,170.82,5.852]
[1747568941141,5.8501,170.88,170.82,5.852]
[1747568941341,115.94,170.9,170.82,5.852]
[1747568942648,5.8505,170.87,170.82,5.852]
[1747568943545,5.8505,170.87,170.83,5.8518]
[1747568943745,5.8502,170.88,170.83,5.8518]
[1747568944042,115.94,170.9,170.8,57.96]
[1747568944346,5.8505,170.87,170.82,5.8521]
[1747568946149,5.8508,170.86,170.82,5.8521]
[1747568946349,115.94,170.9,170.8,57.96]
[1747568948251,5.8515,170.84,170.8,63.8128]
[1747568949051,5.8518,170.83,170.79,5.8531]
[1747568949349,115.94,170.9,170.79,63.8131]
[1747568949648,5.8516,170.84,170.79,63.8131]
[1747568949851,115.94,170.86,170.78,11.6979]
[1747568950352,5.8525,170.81,170.78,11.6979]
[1747568950852,115.94,170.86,170.78,11.6979]
[1747568951553,5.8523,170.82,170.78,11.6979]
[1747568955755,5.8525,170.81,170.78,9.6729]
[1747568957559,5.8522,170.82,170.78,9.6729]
[1747568960865,57.98,170.86,170.78,3.8194]
[1747568961162,57.98,170.86,170.78,5.7466]
[1747568961362,57.98,170.86,170.8,5.8526]
[1747568961363,5.8515,170.84,170.8,5.8526]
[1747568961764,5.8515,170.84,170.81,5.8525]
[1747568963366,195.27642022,170.89,170.8,57.96]
[1747568963565,195.27642022,170.89,170.81,57.96]
[1747568963966,5.8503,170.88,170.84,5.8511]
[1747568965055,5.8505,170.87,170.84,5.8511]
[1747568965260,195.27642022,170.89,170.84,5.8511]
[1747568965767,5.8502,170.88,170.85,5.8511]
[1747568965970,195.27642022,170.89,170.85,5.8511]
[1747568966266,201.12642022,170.89,170.85,5.8511]
[1747568966868,5.8501,170.88,170.85,5.8511]
[1747568967463,5.8505,170.87,170.83,5.8515]
[1747568967670,5.8505,170.87,170.81,57.96]
[1747568968068,5.8502,170.88,170.84,5.8512]
[1747568969369,5.8502,170.88,170.85,5.8511]
[1747568969865,201.12632022,170.89,170.85,5.8511]
[1747568971373,5.8502,170.88,170.85,5.8511]
[1747568971673,195.27642022,170.89,170.85,5.8511]
[1747568971975,201.12622022,170.89,170.85,5.8511]
[1747568973276,5.43900407,170.92,170.84,57.96]
[1747568973478,5.43900407,170.92,170.85,57.96]
[1747568974575,5.8491,170.91,170.88,5.8501]
[1747568975075,5.43900407,170.92,170.85,57.96]
[1747568975275,5.43900407,170.92,170.85,59.8503]
[1747568975664,5.43900407,170.92,170.89,5.8495]
[1747568976074,11.28780407,170.92,170.89,5.8495]
[1747568976373,5.8488,170.92,170.89,5.8495]
[1747568979979,5.8485,170.93,170.89,5.8495]
[1747568980874,63.8082,170.94,170.9,5.8491]
[1747568982083,63.8082,170.94,170.91,5.8491]
[1747568982377,11.28680407,170.95,170.88,57.92]
[1747568982580,5.8478,170.95,170.88,57.92]
[1747568982775,5.8475,170.96,170.92,5.8487]
[1747568982980,121.29900407,170.97,170.89,57.94]
[1747568982981,5.43900407,170.97,170.89,57.94]
[1747568983880,11.28600407,170.97,170.94,5.848]
[1747568985184,5.847,170.97,170.94,5.848]
[1747568985381,5.8468,170.98,170.94,5.848]
[1747568986385,5.847,170.97,170.94,5.848]
[1747568988590,453.04,171.0,170.89,57.94]
[1747568988799,115.86,171.0,170.89,57.94]
[1747568989198,121.7061,171.0,170.89,57.94]
[1747568989682,121.7061,171.0,170.96,5.8472]
[1747568990087,63.7661,171.0,170.96,5.8472]
[1747568990287,57.92,171.0,170.97,5.847]
[1747568993199,63.766,171.0,170.97,5.847]
[1747568994803,5.846,171.0,170.97,5.847]
[1747568998106,5.8458,171.01,170.97,5.847]
[1747568999105,5.846,171.0,170.97,5.847]
[1747569000203,5.8458,171.01,170.98,5.8466]
[1747569000402,115.82,171.03,170.98,5.8466]
[1747569001102,115.82,171.03,170.97,5.8469]
[1747569001505,5.846,171.0,170.97,5.8469]
[1747569004207,5.846,171.0,170.98,5.8466]
[1747569004905,5.846,171.0,170.97,5.8468]
[1747569008209,115.82,171.03,170.93,57.9]
[1747569008706,115.82,171.03,170.95,5.8475]
[1747569008909,115.82,171.03,170.9,57.9]
[1747569009306,5.8469,170.98,170.95,5.8477]
[1747569009710,5.8473,170.97,170.94,5.8479]
[1747569012311,5.8467,170.98,170.95,5.8476]
[1747569012505,5.43900407,171.02,170.91,59.8688]
[1747569012705,5.43900407,171.02,170.91,61.8154]
[1747569013006,5.43900407,171.02,170.97,5.847]
[1747569013404,5.846,171.01,170.97,5.847]
[1747569014110,5.846,171.0,170.97,5.847]
[1747569018423,5.43900407,171.02,170.96,5.8472]
[1747569018812,5.43900407,171.02,170.92,1.9714]
[1747569019420,5.8472,170.97,170.94,5.8478]
[1747569020820,57.88,170.99,170.93,5.8482]
[1747569021319,5.8476,170.96,170.93,5.8482]
[1747569021518,57.88,170.99,170.92,5.8486]
[1747569021716,115.76,170.99,170.92,5.8486]
[1747569022619,121.19900407,170.99,170.92,5.8486]
[1747569022919,5.8479,170.95,170.92,5.8486]
[1747569024324,121.19900407,170.99,170.88,115.76]
[1747569024829,121.19900407,170.99,170.92,5.8484]
[1747569025731,5.43900407,170.98,170.92,5.8484]
[1747569026821,5.8478,170.95,170.92,5.8484]
[1747569027123,5.43900407,170.98,170.93,5.8483]
[1747569027622,5.8475,170.96,170.93,5.8483]
[1747569028127,11.28590407,170.98,170.88,115.76]
[1747569028826,11.28590407,170.98,170.94,5.8478]
[1747569029129,11.28590407,170.98,170.88,115.76]
[1747569029320,11.28590407,170.98,170.88,121.23258677]
[1747569029525,11.28590407,170.98,170.94,5.8478]
[1747569030328,5.43900407,170.98,170.88,121.23258677]
[1747569030625,5.43900407,170.98,170.89,115.76]
[1747569032527,5.8466,170.99,170.89,121.23258677]
[1747569033727,5.8466,170.99,170.95,5.8475]
[1747569034027,5.43900407,171.0,170.93,115.76]
[1747569034635,5.43900407,171.0,170.93,57.88]
[1747569034828,5.43900407,171.0,170.91,57.88]
[1747569035130,5.8476,170.96,170.92,5.8485]
[1747569037032,5.8476,170.96,170.93,5.8483]
[1747569037437,5.8477,170.95,170.93,5.8483]
[1747569037934,121.19900407,170.98,170.93,5.8483]
[1747569038728,5.8476,170.96,170.93,5.8483]
[1747569039434,5.8471,170.97,170.94,5.848]
[1747569039736,121.19900407,170.98,170.91,57.88]
[1747569039931,5.43900407,170.98,170.92,1.9943]
[1747569040132,5.43900407,170.98,170.92,3.8703]
[1747569040637,11.28590407,170.98,170.94,5.8478]
[1747569041636,5.847,170.97,170.94,5.8478]
[1747569042425,5.43900407,170.99,170.92,3.8703]
[1747569043238,5.43900407,170.99,170.96,5.8471]
[1747569043937,11.28540407,170.99,170.96,5.8471]
[1747569045036,5.8464,170.99,170.96,5.8471]
[1747569045640,5.8461,171.0,170.96,5.8471]
[1747569047639,11.28510407,171.0,170.96,5.8471]
[1747569048034,11.28510407,171.0,170.97,5.8469]
[1747569049139,11.28510407,171.0,170.96,5.8472]
[1747569050142,11.28510407,171.0,170.97,5.847]
[1747569050334,69.16480407,171.01,170.92,3.8703]
[1747569050536,69.16480407,171.01,170.93,2.0131]
[1747569051543,69.16480407,171.01,170.98,5.8465]
[1747569053047,63.7258,171.01,170.98,5.8465]
[1747569053238,63.7258,171.01,170.97,5.8469]
[1747569055644,5.846,171.0,170.97,5.8469]
[1747569059055,11.28470407,171.01,170.97,5.8469]
[1747569059747,5.846,171.0,170.97,5.8469]
[1747569059952,5.846,171.0,170.96,5.8472]
[1747569060457,5.43900407,171.01,170.95,5.8476]
[1747569060655,5.43900407,171.01,170.93,2.0131]
[1747569061055,5.8472,170.97,170.94,5.8479]
[1747569062152,5.8472,170.97,170.93,7.8614]
[1747569062755,5.8472,170.97,170.94,5.848]
[1747569062959,5.8468,170.98,170.94,5.848]
[1747569063757,57.86,171.0,170.93,2.0131]
[1747569064659,5.43900407,171.0,170.93,2.0131]
[1747569065159,5.43900407,171.0,170.97,5.8468]
[1747569065659,5.43900407,171.0,170.98,5.8467]
[1747569066552,5.43900407,171.0,170.93,2.0131]
[1747569067261,5.8459,171.01,170.97,5.8468]
[1747569067761,5.8459,171.01,170.98,5.8466]
[1747569068062,5.8459,171.01,170.94,57.84]
[1747569068364,5.8459,171.01,170.97,5.8469]
[1747569069456,5.8459,171.01,170.98,5.8466]
[1747569070157,5.43900407,171.02,170.96,57.84]
[1747569071463,5.43900407,171.02,170.99,5.8461]
[1747569071757,11.28430407,171.02,170.99,5.8461]
[1747569071966,11.28430407,171.02,170.98,5.8465]
[1747569073365,11.28430407,171.02,170.99,5.8463]
[1747569074366,5.8453,171.02,170.99,5.8463]
[1747569078367,192.55078336,171.04,170.99,5.8463]
[1747569078368,5.8451,171.03,170.99,5.8463]
[1747569079569,5.43900407,171.04,170.96,57.84]
[1747569079770,5.43900407,171.04,170.98,57.82]
[1747569079971,5.43900407,171.04,170.99,1.8896]
[1747569080168,5.43900407,171.04,171.0,57.82]
[1747569080474,5.43900407,171.04,171.03,5.845]
[1747569084574,5.43900407,171.04,171.02,5.8452]
[1747569085176,5.43900407,171.04,171.01,5.8456]
[1747569085776,5.43900407,171.04,171.0,5.8459]
[1747569085975,5.43900407,171.06,171.0,5.8459]
[1747569086477,5.8452,171.03,171.0,5.8459]
[1747569087174,5.8453,171.02,170.99,7.7358]
[1747569087379,57.8,171.05,170.98,57.8]
[1747569087780,57.8,171.05,170.99,5.8462]
[1747569088685,5.8457,171.01,170.98,63.6465]
[1747569088877,5.8457,171.01,170.98,57.8]
[1747569089577,5.8457,171.01,170.98,63.6466]
[1747569090493,5.8457,171.01,170.99,5.8463]
[1747569090884,5.8455,171.02,170.99,5.8463]
[1747569091178,5.43900407,171.03,170.99,5.8463]
[1747569091386,5.43900407,171.03,170.98,63.6465]
[1747569091574,5.8458,171.01,170.98,63.6465]
[1747569091886,5.8458,171.01,170.98,5.8465]
[1747569092586,5.8462,171.0,170.97,5.8469]
[1747569092983,5.43900407,171.03,170.96,115.6]
[1747569093184,5.8468,170.98,170.96,5.8473]
[1747569093487,5.43900407,171.03,170.94,115.6]
[1747569093785,5.43900407,171.03,170.94,63.6479]
[1747569094183,5.8471,170.97,170.94,63.6479]
[1747569094987,5.8468,170.98,170.94,57.8]
[1747569095786,5.8468,170.98,170.95,5.8475]
[1747569097289,5.847,170.97,170.95,5.8475]
[1747569097591,5.847,170.97,170.94,63.6479]
[1747569098590,5.847,170.97,170.94,57.8]
[1747569098793,5.8474,170.96,170.94,57.8]
[1747569099091,63.23900407,171.01,170.94,63.648]
[1747569099692,63.23900407,171.01,170.95,5.8477]
[1747569099890,63.23900407,171.01,170.94,57.8]
[1747569100091,5.8466,170.99,170.94,57.8]
[1747569100695,5.8466,170.99,170.95,5.8475]
[1747569101187,5.846,171.0,170.94,57.8]
[1747569101392,5.43900407,171.01,170.94,57.8]
[1747569101886,11.28490407,171.01,170.97,5.8468]
[1747569102088,5.43900407,171.01,170.94,57.8]
[1747569102292,5.43900407,171.01,170.96,57.8]
[1747569102588,11.28470407,171.01,170.97,5.8468]
[1747569103392,5.43900407,171.01,170.96,57.8]
[1747569103582,5.43900407,171.02,170.96,57.8]
[1747569104187,11.28460407,171.02,170.98,5.8464]
[1747569104985,11.28460407,171.02,170.96,59.6396]
[1747569104986,5.8457,171.01,170.97,5.8469]
[1747569105294,5.8457,171.01,170.96,59.6396]
[1747569105694,11.28440407,171.02,170.98,5.8467]
[1747569106899,5.8457,171.01,170.97,5.8469]
[1747569107095,5.43900407,171.02,170.96,59.6396]
[1747569107294,5.43900407,171.03,170.96,59.6396]
[1747569107495,5.8457,171.01,170.96,65.4867]
[1747569107998,5.43900407,171.03,170.96,7.6867]
[1747569109001,5.8467,170.98,170.96,7.6867]
[1747569109201,5.43900407,171.03,170.96,7.6867]
[1747569109898,5.8465,170.99,170.96,7.6867]
[1747569110096,5.8465,170.99,170.97,5.847]
[1747569110795,5.8465,170.99,170.96,7.6869]
[1747569112599,11.28510407,171.0,170.97,5.847]
[1747569112904,5.43900407,171.02,170.96,1.8396]
[1747569113097,5.8464,170.99,170.96,1.8396]
[1747569113903,5.846,171.0,170.96,1.8396]
[1747569114103,5.43900407,171.02,170.96,1.8396]
[1747569115103,5.43900407,171.02,170.96,7.6869]
[1747569115503,5.43900407,171.02,170.96,1.8396]
[1747569115700,5.8465,170.99,170.96,1.8396]
[1747569116607,5.8465,170.99,170.96,7.6869]
[1747569117506,5.43900407,171.02,170.96,1.8396]
[1747569118102,11.28450407,171.02,170.98,5.8464]
[1747569118303,11.28450407,171.02,170.96,1.8396]
[1747569119409,5.43900407,171.02,170.96,1.8396]
[1747569119909,5.43900407,171.02,170.97,1.8812]
[1747569120105,5.43900407,171.02,170.98,57.78]
[1747569120505,5.43900407,171.02,171.01,5.8457]
[1747569122311,11.28330407,171.05,171.01,5.8457]
[1747569123315,5.8447,171.04,171.01,5.8457]
[1747569123614,5.43900407,171.05,171.01,5.8457]
[1747569124113,11.28340407,171.05,171.01,5.8457]
[1747569125914,5.8444,171.05,171.01,5.8457]
[1747569126716,5.8444,171.05,171.02,5.8452]
[1747569128527,63.6241,171.06,171.03,5.8449]
[1747569128726,5.43900407,171.07,170.99,57.78]
[1747569129725,5.43900407,171.07,171.04,5.8444]
[1747569130028,5.43900407,171.07,171.03,57.76]
[1747569130231,5.43900407,171.07,171.04,117.4139]
[1747569130525,5.43900407,171.09,171.04,117.4139]
[1747569131129,5.43900407,171.09,171.07,5.8433]
[1747569133930,5.8424,171.11,171.07,5.8433]
[1747569134627,5.8424,171.11,171.04,117.4139]
[1747569135128,5.8424,171.11,171.07,5.8434]
[1747569136033,5.8426,171.1,171.07,5.8434]
[1747569136229,115.54,171.14,171.05,5.8441]
[1747569136431,115.54,171.14,171.04,117.4139]
[1747569136626,5.8431,171.09,171.04,117.4139]
[1747569136820,5.8431,171.09,171.06,5.8437]
[1747569137633,5.8431,171.09,171.07,5.8435]
[1747569138431,5.8427,171.1,171.07,5.8435]
[1747569138932,5.8427,171.1,171.04,61.5601]
[1747569139431,5.8427,171.1,171.07,5.8433]
[1747569140832,5.8427,171.1,171.08,5.8433]
[1747569141031,57.74,171.13,171.04,61.5601]
[1747569141223,57.74,171.13,171.08,5.8431]
[1747569141420,120.95900407,171.14,171.08,5.8431]
[1747569141723,5.8422,171.11,171.08,5.8431]
[1747569142231,5.8426,171.1,171.07,5.8435]
[1747569142432,5.8426,171.1,171.04,63.4172]
[1747569142628,115.52,171.14,171.04,63.4172]
[1747569143232,115.52,171.14,171.04,61.5601]
[1747569143429,1.9602,171.13,170.99,1.8571]
[1747569143637,5.8441,171.06,171.03,5.8449]
[1747569145032,5.8441,171.06,171.04,5.8445]
[1747569146035,5.8447,171.04,170.99,5.5356]
[1747569146240,115.48,171.1,170.99,59.5682]
[1747569146439,1.9593,171.09,170.99,59.5682]
[1747569146737,5.8455,171.02,170.99,63.5861]
[1747569147232,5.8457,171.01,170.99,57.74]
[1747569147738,5.8454,171.02,170.99,63.5861]
[1747569150339,5.8451,171.03,170.99,57.74]
[1747569150544,115.48,171.06,170.99,57.74]
[1747569151146,5.8448,171.04,171.01,5.8456]
[1747569151545,115.48,171.06,170.99,57.74]
[1747569151747,5.8454,171.02,170.99,63.5861]
[1747569151946,115.48,171.06,170.96,57.74]
[1747569152247,5.8459,171.01,170.98,5.8465]
[1747569155644,5.8454,171.02,170.99,5.8463]
[1747569155849,115.48,171.06,170.96,57.74]
[1747569156851,5.8451,171.03,170.99,5.8463]
[1747569158051,5.8446,171.04,171.0,5.8459]
[1747569158253,5.8446,171.04,170.96,57.74]
[1747569158552,5.8446,171.04,171.0,5.8458]
[1747569160054,5.8446,171.04,171.01,5.8456]
[1747569160353,5.8446,171.04,170.96,57.74]
[1747569162044,5.8446,171.04,171.0,5.8457]
[1747569162247,63.5842,171.06,170.96,57.74]
[1747569162451,57.74,171.06,170.96,57.74]
[1747569162751,5.8445,171.05,170.96,57.74]
[1747569164347,5.8445,171.05,171.01,5.8454]
[1747569165054,5.8447,171.04,171.01,5.8454]
[1747569170159,5.8447,171.04,171.0,5.8459]
[1747569170350,57.74,171.06,170.96,57.74]
[1747569171258,5.845,171.03,170.99,5.8461]
[1747569173658,5.8455,171.02,170.99,5.8461]
[1747569174160,5.8457,171.01,170.98,5.8465]
[1747569174356,57.74,171.06,170.96,115.48]
[1747569174760,5.8459,171.01,170.98,5.8465]
[1747569175057,59.5855,171.06,170.98,5.8465]
[1747569175258,5.846,171.01,170.98,5.8465]
[1747569178261,5.846,171.0,170.98,5.8465]
[1747569179563,5.8458,171.01,170.98,5.8465]
[1747569182368,5.846,171.0,170.97,5.8469]
[1747569182567,5.43900407,171.05,170.96,115.48]
[1747569182866,5.8464,170.99,170.96,121.3271]
[1747569183067,57.74,171.03,170.96,115.48]
[1747569183472,5.8462,171.0,170.97,5.8469]
[1747569183868,57.74,171.03,170.96,57.74]
[1747569184370,5.8462,171.0,170.97,5.8469]
[1747569186472,5.8464,170.99,170.96,63.5872]
[1747569187070,5.8461,171.0,170.97,5.8469]
[1747569189471,57.74,171.03,170.96,57.74]
[1747569189670,57.74,171.03,170.95,59.5988]
[1747569189671,57.74,171.02,170.93,61.5173]
[1747569189869,57.74,171.02,170.93,66.98988677]
[1747569190177,57.74,171.02,170.93,63.21258677]
[1747569190374,57.74,171.02,170.93,5.47258677]
[1747569190671,5.8474,170.96,170.93,11.32068677]
[1747569191275,5.8474,170.96,170.94,5.848]
[1747569192873,5.8474,170.96,170.93,5.8483]
[1747569195077,5.8474,170.96,170.92,5.8486]
[1747569195475,5.8477,170.95,170.92,5.8486]
[1747569197379,5.8475,170.96,170.92,5.8486]
[1747569197975,5.8478,170.95,170.92,5.8486]
[1747569198374,57.74,170.99,170.91,65.4835]
[1747569198576,57.74,170.99,170.91,7.7435]
[1747569198877,57.74,170.99,170.91,1.8944]
[1747569199177,57.72,170.98,170.91,1.8944]
[1747569200781,5.8483,170.94,170.91,7.7435]
[1747569201179,5.8485,170.93,170.91,7.7435]
[1747569202287,57.72,170.98,170.91,7.7435]
[1747569203285,5.8484,170.94,170.92,5.8487]
[1747569204086,5.8484,170.94,170.91,7.7433]
[1747569204688,57.72,170.98,170.92,5.8487]
[1747569204984,57.72,170.98,170.91,1.8944]
[1747569205288,5.8476,170.96,170.93,5.8484]
[1747569205488,57.72,170.98,170.91,1.8944]
[1747569205982,5.8486,170.93,170.91,1.8944]
[1747569208283,57.72,170.98,170.9,116.50571341]
[1747569208690,5.8489,170.92,170.89,57.74]
[1747569209596,5.849,170.91,170.89,57.74]
[1747569209997,5.849,170.91,170.88,5.8498]
[1747569210291,5.8494,170.9,170.87,7.7435]
[1747569211002,5.8499,170.89,170.86,63.5905]
[1747569211300,57.74,170.94,170.86,57.74]
[1747569211999,5.8497,170.9,170.87,5.8504]
[1747569212599,5.8498,170.89,170.87,5.8504]
[1747569212903,5.8498,170.89,170.86,63.5906]
[1747569215308,57.74,170.94,170.85,1.8991]
[1747569215698,59.6308,170.94,170.85,1.8991]
[1747569215896,5.8503,170.88,170.85,7.7501]
[1747569219211,5.8503,170.88,170.85,1.8991]
[1747569220308,5.8503,170.88,170.85,7.7501]
[1747569220808,5.8498,170.89,170.85,7.7501]
[1747569221111,59.6308,170.94,170.85,7.7501]
[1747569222207,5.8502,170.88,170.85,7.7501]
[1747569227916,5.8499,170.89,170.86,5.8507]
[1747569228105,5.8499,170.89,170.85,1.8991]
[1747569228506,5.8501,170.88,170.85,7.75]
[1747569229220,5.8505,170.87,170.85,1.8991]
[1747569229612,59.6308,170.94,170.85,1.8991]
[1747569229812,5.8503,170.88,170.85,7.7502]
[1747569230518,5.8499,170.89,170.85,7.7502]
[1747569230912,59.6308,170.94,170.85,7.7502]
[1747569232017,5.8503,170.88,170.85,7.7502]
[1747569240726,5.8498,170.89,170.86,5.8507]
[1747569240925,5.43900407,170.95,170.85,1.8991]
[1747569241119,5.43900407,170.94,170.85,1.8991]
[1747569241417,5.43900407,170.94,170.91,5.8488]
[1747569241618,5.43900407,170.94,170.9,115.5]
[1747569242526,5.43900407,170.94,170.93,5.8484]
[1747569243227,7.25200543,170.97,170.95,5.8476]
[1747569244024,57.74,171.0,170.95,5.8476]
[1747569244529,5.8467,170.98,170.94,5.8479]
[1747569245126,5.846,171.0,170.96,5.8471]
[1747569245318,5.846,171.0,170.94,116.06]
[1747569245930,5.846,171.0,170.97,5.8469]
[1747569247226,1.8583,171.02,170.94,116.06]
[1747569247426,1.8583,171.02,170.92,116.1]
[1747569247829,5.847,170.97,170.94,5.848]
[1747569248030,1.8583,171.02,170.92,116.1]